[Event "Early-Titled-Tuesday-Blitz-February-06-2024"]
[Site "Chess.com"]
[Date "2024.02.06"]
[Round "8"]
[White "Meri-Arabidze"]
[Black "valeriocarnicelli"]
[Result "1-0"]
[WhiteElo "2730"]
[BlackElo "2534"]
[TimeControl "180+1"]
[EndTime "9:28:52 PST"]
[Termination "Meri-Arabidze won by resignation"]

1. Nf3 {[%clk 0:03:00.9]} 1... Nf6 {[%clk 0:03:00.2]} 2. b3 {[%clk 0:03:01.6]}
2... g6 {[%clk 0:03:00.3]} 3. Bb2 {[%clk 0:03:02.3]} 3... Bg7 {[%clk 0:03:00.9]}
4. g3 {[%clk 0:03:03]} 4... O-O {[%clk 0:03:00.6]} 5. Bg2 {[%clk 0:03:03.3]}
5... d5 {[%clk 0:03:00.8]} 6. O-O {[%clk 0:03:02.5]} 6... c6 {[%clk 0:03:01]} 7.
c4 {[%clk 0:03:01.5]} 7... Bg4 {[%clk 0:03:00.2]} 8. d3 {[%clk 0:02:57.7]} 8...
Qc8 {[%clk 0:02:51.9]} 9. Nbd2 {[%clk 0:02:51.6]} 9... Bh3 {[%clk 0:02:50.8]}
10. e4 {[%clk 0:02:51.8]} 10... dxe4 {[%clk 0:02:31.5]} 11. dxe4 {[%clk
0:02:49.8]} 11... Rd8 {[%clk 0:02:20.8]} 12. Qe2 {[%clk 0:02:43.4]} 12... Bxg2
{[%clk 0:02:05.3]} 13. Kxg2 {[%clk 0:02:44.3]} 13... a5 {[%clk 0:02:03.8]} 14.
e5 {[%clk 0:02:39.1]} 14... Ne8 {[%clk 0:02:03.7]} 15. Ne4 {[%clk 0:02:35.4]}
15... Nc7 {[%clk 0:02:00]} 16. Rad1 {[%clk 0:02:30.3]} 16... Ne6 {[%clk
0:01:56]} 17. Rxd8+ {[%clk 0:02:27.3]} 17... Qxd8 {[%clk 0:01:56.6]} 18. Rd1
{[%clk 0:02:27.5]} 18... Qc8 {[%clk 0:01:56.7]} 19. Nfg5 {[%clk 0:02:09.5]}
19... Na6 {[%clk 0:01:54.8]} 20. Qf3 {[%clk 0:02:05.4]} 20... Nxg5 {[%clk
0:01:47.9]} 21. Nxg5 {[%clk 0:02:06.3]} 21... Qe8 {[%clk 0:01:48.3]} 22. e6
{[%clk 0:01:58.3]} 22... f6 {[%clk 0:01:41.3]} 23. Ne4 {[%clk 0:01:58.1]} 23...
Rd8 {[%clk 0:01:27.9]} 24. h4 {[%clk 0:01:57.4]} 24... b6 {[%clk 0:00:49.4]} 25.
Re1 {[%clk 0:01:46.7]} 25... Nc7 {[%clk 0:00:49.2]} 26. Nc3 {[%clk 0:01:39.5]}
26... Rd6 {[%clk 0:00:39.1]} 27. Na4 {[%clk 0:01:26.5]} 27... c5 {[%clk
0:00:29.7]} 28. Nc3 {[%clk 0:01:05.3]} 28... Qc6 {[%clk 0:00:18.1]} 29. Qxc6
{[%clk 0:00:27.4]} 29... Rxc6 {[%clk 0:00:19]} 30. Nd5 {[%clk 0:00:16.5]} 30...
Nxd5 {[%clk 0:00:16.8]} 31. cxd5 {[%clk 0:00:17.4]} 31... Rd6 {[%clk 0:00:17.4]}
32. Rd1 {[%clk 0:00:18]} 32... f5 {[%clk 0:00:11.8]} 33. Bxg7 {[%clk 0:00:15.2]}
33... Kxg7 {[%clk 0:00:12.7]} 34. f4 {[%clk 0:00:15.4]} 34... Kf8 {[%clk
0:00:07.7]} 35. Kf3 {[%clk 0:00:15.5]} 35... Ke8 {[%clk 0:00:07.9]} 36. g4
{[%clk 0:00:14.4]} 36... Kd8 {[%clk 0:00:04.3]} 37. h5 {[%clk 0:00:14.9]} 37...
Kc7 {[%clk 0:00:04.1]} 38. h6 {[%clk 0:00:14]} 38... fxg4+ {[%clk 0:00:03.1]}
39. Kxg4 {[%clk 0:00:14.2]} 39... Rd8 {[%clk 0:00:03.9]} 40. f5 {[%clk
0:00:11.5]} 40... gxf5+ {[%clk 0:00:04.2]} 41. Kxf5 {[%clk 0:00:12.4]} 41... Kd6
{[%clk 0:00:04.4]} 42. Rg1 {[%clk 0:00:12.1]} 42... Rf8+ {[%clk 0:00:04.6]} 43.
Ke4 {[%clk 0:00:12]} 43... Rf6 {[%clk 0:00:05.3]} 44. Rg8 {[%clk 0:00:08.9]}
44... Rxh6 {[%clk 0:00:04.1]} 45. Rd8+ {[%clk 0:00:09.1]} 45... Kc7 {[%clk
0:00:04.5]} 46. Rd7+ {[%clk 0:00:09.9]} 46... Kc8 {[%clk 0:00:05]} 47. Rxe7
{[%clk 0:00:10.5]} 47... Rh4+ {[%clk 0:00:04.4]} 48. Ke5 {[%clk 0:00:10.8]}
48... Rh5+ {[%clk 0:00:04.5]} 49. Kd6 {[%clk 0:00:11.3]} 1-0

[Event "Early-Titled-Tuesday-Blitz-February-06-2024"]
[Site "Chess.com"]
[Date "2024.02.06"]
[Round "8"]
[White "Mesa_1"]
[Black "PavelShkapenko"]
[Result "1-0"]
[WhiteElo "2569"]
[BlackElo "2749"]
[TimeControl "180+1"]
[EndTime "9:28:53 PST"]
[Termination "Mesa_1 won by resignation"]

1. e4 {[%clk 0:03:00.9]} 1... e5 {[%clk 0:02:59.6]} 2. Nf3 {[%clk 0:03:00.8]}
2... Nc6 {[%clk 0:03:00.2]} 3. Bb5 {[%clk 0:02:57.9]} 3... Bc5 {[%clk
0:02:59.4]} 4. O-O {[%clk 0:02:54]} 4... d6 {[%clk 0:02:59.6]} 5. b4 {[%clk
0:02:47.3]} 5... Bb6 {[%clk 0:02:58.9]} 6. a3 {[%clk 0:02:36.7]} 6... Ne7 {[%clk
0:02:57.7]} 7. Bb2 {[%clk 0:02:34.6]} 7... O-O {[%clk 0:02:57.8]} 8. d4 {[%clk
0:02:31.4]} 8... Bg4 {[%clk 0:02:44.6]} 9. d5 {[%clk 0:02:28.6]} 9... Nb8 {[%clk
0:02:43.9]} 10. Be2 {[%clk 0:02:25.6]} 10... h6 {[%clk 0:02:35.3]} 11. c4 {[%clk
0:02:25.2]} 11... a5 {[%clk 0:02:34]} 12. Nbd2 {[%clk 0:02:21.8]} 12... Na6
{[%clk 0:02:33.8]} 13. Bc3 {[%clk 0:02:20.9]} 13... Bd7 {[%clk 0:02:32.2]} 14.
c5 {[%clk 0:02:16.4]} 14... Ba7 {[%clk 0:02:30.6]} 15. Nc4 {[%clk 0:02:09.7]}
15... axb4 {[%clk 0:02:26.1]} 16. axb4 {[%clk 0:02:10.6]} 16... Bb5 {[%clk
0:02:21.5]} 17. Na5 {[%clk 0:02:00.2]} 17... Bxe2 {[%clk 0:02:19.9]} 18. Qxe2
{[%clk 0:02:01.1]} 18... Qc8 {[%clk 0:02:17.4]} 19. Nxb7 {[%clk 0:01:31]} 19...
Nxc5 {[%clk 0:02:05.3]} 20. Nxc5 {[%clk 0:01:11.6]} 20... dxc5 {[%clk
0:02:04.8]} 21. Nxe5 {[%clk 0:00:47.7]} 21... Re8 {[%clk 0:02:05]} 22. Qh5
{[%clk 0:00:42.5]} 22... Rf8 {[%clk 0:01:46.3]} 23. bxc5 {[%clk 0:00:33.1]}
23... Bxc5 {[%clk 0:01:45.7]} 24. Rxa8 {[%clk 0:00:34]} 24... Qxa8 {[%clk
0:01:45.9]} 25. Nd7 {[%clk 0:00:34.7]} 25... Qa3 {[%clk 0:01:38.2]} 26. Nxf8
{[%clk 0:00:27.2]} 26... Qxc3 {[%clk 0:01:38]} 27. Nd7 {[%clk 0:00:27.9]} 27...
Bd4 {[%clk 0:01:32.7]} 28. Qe2 {[%clk 0:00:25.8]} 28... Ng6 {[%clk 0:01:28.3]}
29. g3 {[%clk 0:00:26.3]} 29... Qb4 {[%clk 0:00:54.3]} 30. Kg2 {[%clk
0:00:25.1]} 30... Qd6 {[%clk 0:00:53.7]} 31. Rd1 {[%clk 0:00:24.4]} 31... Bxf2
{[%clk 0:00:38.5]} 32. Qxf2 {[%clk 0:00:19.7]} 32... Qxd7 {[%clk 0:00:38.8]} 33.
Qc5 {[%clk 0:00:17.8]} 33... Ne5 {[%clk 0:00:34.3]} 34. Qc3 {[%clk 0:00:18.4]}
34... Qe7 {[%clk 0:00:33.2]} 35. Rc1 {[%clk 0:00:17.1]} 35... Ng4 {[%clk
0:00:32.9]} 36. Qf3 {[%clk 0:00:14.1]} 36... Nf6 {[%clk 0:00:32.7]} 37. Re1
{[%clk 0:00:13.1]} 37... Nxd5 {[%clk 0:00:31.9]} 38. Rd1 {[%clk 0:00:10.8]}
38... Nf6 {[%clk 0:00:31.6]} 39. Rd4 {[%clk 0:00:11.1]} 39... c5 {[%clk
0:00:29.1]} 40. Rc4 {[%clk 0:00:10.8]} 40... Qe5 {[%clk 0:00:29.2]} 41. Qd3
{[%clk 0:00:10.6]} 41... g6 {[%clk 0:00:24.7]} 42. h3 {[%clk 0:00:10.7]} 42...
Kg7 {[%clk 0:00:24.5]} 43. Kf3 {[%clk 0:00:08.9]} 43... Qe6 {[%clk 0:00:21.7]}
44. Kg2 {[%clk 0:00:08.3]} 44... Nd7 {[%clk 0:00:18.6]} 45. Qc3+ {[%clk
0:00:07.7]} 45... Kh7 {[%clk 0:00:18.3]} 46. Ra4 {[%clk 0:00:06.3]} 46... Nf6
{[%clk 0:00:14.7]} 47. Qc4 {[%clk 0:00:05.9]} 47... Qe5 {[%clk 0:00:13.6]} 48.
Qxf7+ {[%clk 0:00:05.9]} 1-0

[Event "Early-Titled-Tuesday-Blitz-February-06-2024"]
[Site "Chess.com"]
[Date "2024.02.06"]
[Round "8"]
[White "GianmarcoVaR"]
[Black "Iball95"]
[Result "1-0"]
[WhiteElo "2693"]
[BlackElo "2891"]
[TimeControl "180+1"]
[EndTime "9:28:54 PST"]
[Termination "GianmarcoVaR won by resignation"]

1. e4 {[%clk 0:02:55.4]} 1... c5 {[%clk 0:02:59.6]} 2. Nf3 {[%clk 0:02:55.2]}
2... e6 {[%clk 0:03:00.1]} 3. g3 {[%clk 0:02:50.2]} 3... d5 {[%clk 0:02:59.6]}
4. exd5 {[%clk 0:02:47]} 4... exd5 {[%clk 0:03:00.5]} 5. Bg2 {[%clk 0:02:44.6]}
5... Nc6 {[%clk 0:03:01]} 6. O-O {[%clk 0:02:44.8]} 6... Nf6 {[%clk 0:03:01.6]}
7. d4 {[%clk 0:02:44.5]} 7... Be7 {[%clk 0:03:01.9]} 8. dxc5 {[%clk 0:02:44.7]}
8... Bxc5 {[%clk 0:03:02.8]} 9. Re1+ {[%clk 0:02:44.1]} 9... Be6 {[%clk
0:03:03.2]} 10. Nbd2 {[%clk 0:02:34.5]} 10... O-O {[%clk 0:03:02.6]} 11. Nb3
{[%clk 0:02:34.5]} 11... Bb6 {[%clk 0:03:03.2]} 12. Be3 {[%clk 0:02:34.3]} 12...
Re8 {[%clk 0:02:59.4]} 13. c3 {[%clk 0:02:27.7]} 13... h6 {[%clk 0:02:55.2]} 14.
Qd3 {[%clk 0:02:05.2]} 14... Ne4 {[%clk 0:02:51.4]} 15. Rad1 {[%clk 0:02:03.2]}
15... Rc8 {[%clk 0:02:18.4]} 16. Bxb6 {[%clk 0:01:55.8]} 16... Qxb6 {[%clk
0:02:19.3]} 17. Nfd4 {[%clk 0:01:50.4]} 17... Ne5 {[%clk 0:02:12.5]} 18. Qb5
{[%clk 0:01:48.1]} 18... Qc7 {[%clk 0:02:08]} 19. f3 {[%clk 0:01:43]} 19... Nd6
{[%clk 0:02:01.1]} 20. Qa5 {[%clk 0:01:39.8]} 20... b6 {[%clk 0:01:59.2]} 21.
Qa6 {[%clk 0:01:35.3]} 21... Nec4 {[%clk 0:01:57.3]} 22. Nxe6 {[%clk 0:01:15.3]}
22... fxe6 {[%clk 0:01:58.2]} 23. Re2 {[%clk 0:01:09.8]} 23... Kh8 {[%clk
0:01:43.3]} 24. Bh3 {[%clk 0:01:00.3]} 24... Qf7 {[%clk 0:01:39.9]} 25. Rf1
{[%clk 0:00:53]} 25... Rcd8 {[%clk 0:01:19.2]} 26. Nd4 {[%clk 0:00:49.1]} 26...
Nf5 {[%clk 0:01:19.7]} 27. Bxf5 {[%clk 0:00:27.5]} 27... exf5 {[%clk 0:01:20.6]}
28. Rfe1 {[%clk 0:00:28.1]} 28... Rxe2 {[%clk 0:01:21]} 29. Rxe2 {[%clk
0:00:28.7]} 29... Re8 {[%clk 0:01:21.8]} 30. b3 {[%clk 0:00:29.2]} 30... Rxe2
{[%clk 0:01:21.9]} 31. Nxe2 {[%clk 0:00:29.8]} 31... Qe7 {[%clk 0:01:10.9]} 32.
bxc4 {[%clk 0:00:29.2]} 32... Qxe2 {[%clk 0:01:10.3]} 33. Qc8+ {[%clk
0:00:29.7]} 33... Kh7 {[%clk 0:01:08.8]} 34. Qxf5+ {[%clk 0:00:30.6]} 34... Kh8
{[%clk 0:01:09.3]} 35. Qc8+ {[%clk 0:00:30.7]} 35... Kh7 {[%clk 0:01:09.7]} 36.
Qf5+ {[%clk 0:00:31.6]} 36... Kh8 {[%clk 0:01:10.2]} 37. cxd5 {[%clk 0:00:29.3]}
37... Qe1+ {[%clk 0:00:45.3]} 38. Kg2 {[%clk 0:00:28.9]} 38... Qxc3 {[%clk
0:00:46.2]} 39. Qf8+ {[%clk 0:00:25.8]} 39... Kh7 {[%clk 0:00:45.7]} 40. Qf5+
{[%clk 0:00:26.7]} 40... Kh8 {[%clk 0:00:45.9]} 41. Kh3 {[%clk 0:00:24]} 41...
Qd4 {[%clk 0:00:31.5]} 42. Qf8+ {[%clk 0:00:22.3]} 42... Kh7 {[%clk 0:00:32]}
43. Qf5+ {[%clk 0:00:23.2]} 43... Kh8 {[%clk 0:00:32.8]} 44. Qe6 {[%clk
0:00:23.1]} 44... Qc4 {[%clk 0:00:23.5]} 45. Qe8+ {[%clk 0:00:22.6]} 45... Kh7
{[%clk 0:00:23.9]} 46. Qe4+ {[%clk 0:00:23.5]} 46... Qxe4 {[%clk 0:00:23.5]} 47.
fxe4 {[%clk 0:00:24.4]} 47... Kg6 {[%clk 0:00:23.9]} 48. Kg4 {[%clk 0:00:24.2]}
48... b5 {[%clk 0:00:12.5]} 49. Kf4 {[%clk 0:00:22.8]} 49... a5 {[%clk 0:00:13]}
50. Ke3 {[%clk 0:00:22.5]} 50... Kf6 {[%clk 0:00:13.6]} 51. Kd4 {[%clk
0:00:22.8]} 51... b4 {[%clk 0:00:14.2]} 52. e5+ {[%clk 0:00:23.1]} 52... Kf5
{[%clk 0:00:14.6]} 53. e6 {[%clk 0:00:23.5]} 53... a4 {[%clk 0:00:15]} 54. e7
{[%clk 0:00:23]} 54... b3 {[%clk 0:00:15.9]} 55. axb3 {[%clk 0:00:22.6]} 1-0

[Event "Early-Titled-Tuesday-Blitz-February-06-2024"]
[Site "Chess.com"]
[Date "2024.02.06"]
[Round "8"]
[White "ValentinDragnev"]
[Black "FairChess_on_YouTube"]
[Result "0-1"]
[WhiteElo "2763"]
[BlackElo "3066"]
[TimeControl "180+1"]
[EndTime "9:28:55 PST"]
[Termination "FairChess_on_YouTube won by resignation"]

1. d4 {[%clk 0:03:00.9]} 1... Nf6 {[%clk 0:02:58.3]} 2. Nf3 {[%clk 0:03:01.5]}
2... e6 {[%clk 0:02:58.2]} 3. Bf4 {[%clk 0:03:02.1]} 3... b6 {[%clk 0:02:57.8]}
4. e3 {[%clk 0:03:02.6]} 4... Bb7 {[%clk 0:02:57.6]} 5. h3 {[%clk 0:03:03.2]}
5... Bd6 {[%clk 0:02:57.2]} 6. Bxd6 {[%clk 0:03:02.5]} 6... cxd6 {[%clk
0:02:58.1]} 7. Be2 {[%clk 0:03:03.1]} 7... d5 {[%clk 0:02:56.3]} 8. O-O {[%clk
0:03:03]} 8... O-O {[%clk 0:02:56.4]} 9. c4 {[%clk 0:03:00.2]} 9... dxc4 {[%clk
0:02:56.2]} 10. Bxc4 {[%clk 0:03:01.1]} 10... Nc6 {[%clk 0:02:53.7]} 11. Nc3
{[%clk 0:03:00.4]} 11... Rc8 {[%clk 0:02:53.5]} 12. Qe2 {[%clk 0:02:59.5]} 12...
Ne7 {[%clk 0:02:43.6]} 13. Ba6 {[%clk 0:02:55.7]} 13... Qc7 {[%clk 0:02:40.2]}
14. Rac1 {[%clk 0:02:53.3]} 14... Qb8 {[%clk 0:02:37.7]} 15. Bxb7 {[%clk
0:02:40.7]} 15... Qxb7 {[%clk 0:02:38.6]} 16. Nb5 {[%clk 0:02:40.9]} 16... Qa6
{[%clk 0:02:34.1]} 17. b3 {[%clk 0:02:25.4]} 17... Ne4 {[%clk 0:02:18.3]} 18. a4
{[%clk 0:02:23.7]} 18... Qb7 {[%clk 0:02:10.2]} 19. Nd2 {[%clk 0:02:20.8]} 19...
Nxd2 {[%clk 0:01:49.5]} 20. Qxd2 {[%clk 0:01:59.7]} 20... Nf5 {[%clk 0:01:46.4]}
21. d5 {[%clk 0:01:36.6]} 21... a6 {[%clk 0:01:13.3]} 22. Nc3 {[%clk 0:01:35.8]}
22... b5 {[%clk 0:01:03.3]} 23. e4 {[%clk 0:01:28.6]} 23... Ne7 {[%clk
0:00:59.5]} 24. axb5 {[%clk 0:01:09.3]} 24... axb5 {[%clk 0:01:00.4]} 25. d6
{[%clk 0:01:10]} 25... Ng6 {[%clk 0:00:58.2]} 26. Qd4 {[%clk 0:01:05.7]} 26...
Nf4 {[%clk 0:00:53.7]} 27. Qe3 {[%clk 0:01:05.8]} 27... e5 {[%clk 0:00:45.2]}
28. g3 {[%clk 0:01:05.7]} 28... b4 {[%clk 0:00:44.1]} 29. Na4 {[%clk 0:00:48.3]}
29... Ne6 {[%clk 0:00:44.1]} 30. Rxc8 {[%clk 0:00:12.8]} 30... Rxc8 {[%clk
0:00:45]} 31. Rc1 {[%clk 0:00:13.2]} 31... Rxc1+ {[%clk 0:00:37]} 32. Qxc1
{[%clk 0:00:14.1]} 32... h5 {[%clk 0:00:36.2]} 33. Qc4 {[%clk 0:00:12.6]} 33...
h4 {[%clk 0:00:36.2]} 34. Nc5 {[%clk 0:00:10.2]} 34... Qc6 {[%clk 0:00:25.7]}
35. Nd3 {[%clk 0:00:09]} 35... Qxc4 {[%clk 0:00:21.7]} 36. bxc4 {[%clk
0:00:09.1]} 36... b3 {[%clk 0:00:20.8]} 37. Kf1 {[%clk 0:00:05.5]} 37... hxg3
{[%clk 0:00:17.1]} 38. fxg3 {[%clk 0:00:06.4]} 38... Nc5 {[%clk 0:00:17.1]} 39.
Nb2 {[%clk 0:00:07]} 39... Nxe4 {[%clk 0:00:16.9]} 40. g4 {[%clk 0:00:07.7]}
40... Nxd6 {[%clk 0:00:16.2]} 41. Ke2 {[%clk 0:00:08.5]} 41... Ne4 {[%clk
0:00:16.4]} 42. Ke3 {[%clk 0:00:08.1]} 42... Nc5 {[%clk 0:00:16.8]} 43. Kd2
{[%clk 0:00:05.6]} 43... g6 {[%clk 0:00:15.9]} 44. g5 {[%clk 0:00:05.9]} 44...
Ne4+ {[%clk 0:00:15.9]} 45. Ke3 {[%clk 0:00:06.6]} 45... Nxg5 {[%clk 0:00:16.5]}
46. c5 {[%clk 0:00:04.8]} 46... Ne6 {[%clk 0:00:16.1]} 47. Nd3 {[%clk
0:00:03.8]} 47... Nxc5 {[%clk 0:00:15.7]} 0-1

[Event "Early-Titled-Tuesday-Blitz-February-06-2024"]
[Site "Chess.com"]
[Date "2024.02.06"]
[Round "8"]
[White "FM_VS99"]
[Black "eightbyeightchess"]
[Result "0-1"]
[WhiteElo "2606"]
[BlackElo "2390"]
[TimeControl "180+1"]
[EndTime "9:28:55 PST"]
[Termination "eightbyeightchess won by resignation"]

1. d4 {[%clk 0:03:00.9]} 1... d5 {[%clk 0:02:59]} 2. Nf3 {[%clk 0:03:01.4]} 2...
c5 {[%clk 0:02:57.6]} 3. c4 {[%clk 0:03:00.2]} 3... Nf6 {[%clk 0:02:54.3]} 4.
cxd5 {[%clk 0:02:57.8]} 4... cxd4 {[%clk 0:02:52.9]} 5. Qxd4 {[%clk 0:02:55.1]}
5... Qxd5 {[%clk 0:02:52.9]} 6. Nc3 {[%clk 0:02:45.7]} 6... Qxd4 {[%clk
0:02:51.7]} 7. Nxd4 {[%clk 0:02:46.6]} 7... a6 {[%clk 0:02:51.6]} 8. Bf4 {[%clk
0:02:41.1]} 8... Nbd7 {[%clk 0:02:47]} 9. Bc7 {[%clk 0:02:32.2]} 9... g6 {[%clk
0:02:36.9]} 10. g3 {[%clk 0:02:27.5]} 10... Bg7 {[%clk 0:02:36.8]} 11. Bg2
{[%clk 0:02:26.1]} 11... O-O {[%clk 0:02:36.5]} 12. O-O {[%clk 0:02:25.9]} 12...
Ne8 {[%clk 0:02:36.4]} 13. Bd8 {[%clk 0:01:47]} 13... Bxd4 {[%clk 0:02:33.3]}
14. Bxe7 {[%clk 0:01:47.3]} 14... Nb6 {[%clk 0:02:01]} 15. Bxf8 {[%clk
0:01:44.9]} 15... Kxf8 {[%clk 0:02:01.9]} 16. Rad1 {[%clk 0:01:35.1]} 16... Bf6
{[%clk 0:01:58.2]} 17. f4 {[%clk 0:00:51.9]} 17... Nc4 {[%clk 0:01:50.3]} 18.
Nd5 {[%clk 0:00:52]} 18... Bxb2 {[%clk 0:01:45.3]} 19. e4 {[%clk 0:00:49.6]}
19... Bg4 {[%clk 0:01:39.7]} 20. Rb1 {[%clk 0:00:47.8]} 20... b5 {[%clk
0:01:33]} 21. h3 {[%clk 0:00:43.3]} 21... Be2 {[%clk 0:01:24.3]} 22. Rfe1 {[%clk
0:00:28.5]} 22... Bd3 {[%clk 0:01:22.1]} 23. Rxb2 {[%clk 0:00:27.2]} 23... Nxb2
{[%clk 0:01:22.9]} 24. e5 {[%clk 0:00:23.6]} 24... Rc8 {[%clk 0:01:14.6]} 25.
Nb4 {[%clk 0:00:21.4]} 25... a5 {[%clk 0:01:09.8]} 26. Nc6 {[%clk 0:00:21.6]}
26... Nc4 {[%clk 0:00:45.8]} 27. Rd1 {[%clk 0:00:19.3]} 27... Bf5 {[%clk
0:00:32.6]} 28. Kf2 {[%clk 0:00:18.8]} 28... Rc7 {[%clk 0:00:25.4]} 29. g4
{[%clk 0:00:17.8]} 29... Bd7 {[%clk 0:00:24.8]} 30. Nd4 {[%clk 0:00:14.5]} 30...
Ng7 {[%clk 0:00:20.4]} 31. Re1 {[%clk 0:00:13.7]} 31... Ne6 {[%clk 0:00:20.3]}
32. Ne2 {[%clk 0:00:12.4]} 32... Bc6 {[%clk 0:00:20.1]} 33. f5 {[%clk
0:00:11.7]} 33... gxf5 {[%clk 0:00:19.5]} 34. gxf5 {[%clk 0:00:12.1]} 34... Bxg2
{[%clk 0:00:18.6]} 35. Kxg2 {[%clk 0:00:12.5]} 35... Nc5 {[%clk 0:00:17.8]} 36.
Nf4 {[%clk 0:00:10.5]} 36... b4 {[%clk 0:00:16.2]} 37. f6 {[%clk 0:00:11]} 37...
a4 {[%clk 0:00:14.9]} 38. Kf3 {[%clk 0:00:11.1]} 38... b3 {[%clk 0:00:14.7]} 39.
axb3 {[%clk 0:00:11.3]} 39... axb3 {[%clk 0:00:15.5]} 40. Rd1 {[%clk 0:00:10]}
40... Nxe5+ {[%clk 0:00:14.2]} 41. Ke3 {[%clk 0:00:08.8]} 41... Ned7 {[%clk
0:00:12.9]} 42. Ra1 {[%clk 0:00:08.1]} 42... Nxf6 {[%clk 0:00:09.5]} 43. Kd4
{[%clk 0:00:07.1]} 43... b2 {[%clk 0:00:09.1]} 44. Rb1 {[%clk 0:00:07.1]} 44...
Na4 {[%clk 0:00:08.3]} 45. Nd3 {[%clk 0:00:06.9]} 45... Rc2 {[%clk 0:00:07.9]}
46. Ke5 {[%clk 0:00:06.3]} 46... Rd2 {[%clk 0:00:07.4]} 0-1

[Event "Early-Titled-Tuesday-Blitz-February-06-2024"]
[Site "Chess.com"]
[Date "2024.02.06"]
[Round "8"]
[White "HelvertHernandez"]
[Black "the_blue_pill"]
[Result "1-0"]
[WhiteElo "1945"]
[BlackElo "2287"]
[TimeControl "180+1"]
[EndTime "9:28:55 PST"]
[Termination "HelvertHernandez won by resignation"]

1. e4 {[%clk 0:02:51.9]} 1... e5 {[%clk 0:02:59.2]} 2. Nf3 {[%clk 0:02:51.2]}
2... Nc6 {[%clk 0:02:59.5]} 3. d4 {[%clk 0:02:51]} 3... exd4 {[%clk 0:02:57.5]}
4. Nxd4 {[%clk 0:02:50.9]} 4... Nf6 {[%clk 0:02:57.1]} 5. Nc3 {[%clk 0:02:50.4]}
5... Bb4 {[%clk 0:02:56.5]} 6. Nxc6 {[%clk 0:02:49.7]} 6... bxc6 {[%clk
0:02:55.9]} 7. Bd3 {[%clk 0:02:49.8]} 7... d5 {[%clk 0:02:55.6]} 8. exd5 {[%clk
0:02:50.1]} 8... O-O {[%clk 0:02:55.6]} 9. O-O {[%clk 0:02:50.2]} 9... cxd5
{[%clk 0:02:55.4]} 10. Bg5 {[%clk 0:02:49.3]} 10... c6 {[%clk 0:02:55.8]} 11.
Qf3 {[%clk 0:02:49.2]} 11... Rb8 {[%clk 0:02:53.6]} 12. Bxf6 {[%clk 0:02:43.5]}
12... Qxf6 {[%clk 0:02:52.8]} 13. Qxf6 {[%clk 0:02:43.5]} 13... gxf6 {[%clk
0:02:53.7]} 14. Ne2 {[%clk 0:02:43]} 14... Bd6 {[%clk 0:02:48]} 15. b3 {[%clk
0:02:42]} 15... Bd7 {[%clk 0:02:42.9]} 16. Ng3 {[%clk 0:02:35.2]} 16... Rfe8
{[%clk 0:02:32.3]} 17. Rae1 {[%clk 0:02:30.8]} 17... Bb4 {[%clk 0:02:29.3]} 18.
Rxe8+ {[%clk 0:02:26.7]} 18... Rxe8 {[%clk 0:02:28.9]} 19. Nh5 {[%clk
0:02:19.9]} 19... Bc3 {[%clk 0:02:26.3]} 20. g3 {[%clk 0:02:15.9]} 20... Bh3
{[%clk 0:02:21]} 21. Rb1 {[%clk 0:02:09.4]} 21... Bg4 {[%clk 0:02:15.3]} 22. Nf4
{[%clk 0:02:08.2]} 22... Bf3 {[%clk 0:02:14.2]} 23. h3 {[%clk 0:02:06]} 23... a5
{[%clk 0:02:10.9]} 24. Kh2 {[%clk 0:01:59.2]} 24... h6 {[%clk 0:02:07.9]} 25. g4
{[%clk 0:01:58.7]} 25... Kf8 {[%clk 0:01:53.7]} 26. Kg3 {[%clk 0:01:58.1]} 26...
Be4 {[%clk 0:01:54]} 27. Bxe4 {[%clk 0:01:54.5]} 27... Rxe4 {[%clk 0:01:52]} 28.
Kf3 {[%clk 0:01:54]} 28... Ke7 {[%clk 0:01:38.6]} 29. Rd1 {[%clk 0:01:51.6]}
29... Kd6 {[%clk 0:01:33.6]} 30. Nh5 {[%clk 0:01:48]} 30... a4 {[%clk
0:01:25.1]} 31. Ng3 {[%clk 0:01:46]} 31... Re8 {[%clk 0:01:10.1]} 32. Nf5+
{[%clk 0:01:45]} 32... Kc5 {[%clk 0:01:10.6]} 33. Rd3 {[%clk 0:01:37.1]} 33...
d4 {[%clk 0:01:07.8]} 34. h4 {[%clk 0:01:20.1]} 34... a3 {[%clk 0:01:01.8]} 35.
Nxh6 {[%clk 0:01:18.6]} 35... Re1 {[%clk 0:01:01.9]} 36. Nf5 {[%clk 0:01:15.7]}
36... Ra1 {[%clk 0:01:01.7]} 37. h5 {[%clk 0:01:14.1]} 37... Rxa2 {[%clk
0:01:01.3]} 38. h6 {[%clk 0:01:14.4]} 38... Ra1 {[%clk 0:00:58.7]} 39. Kg2
{[%clk 0:01:09.7]} 39... a2 {[%clk 0:00:46.3]} 40. h7 {[%clk 0:01:09.7]} 40...
Rg1+ {[%clk 0:00:45.8]} 41. Kxg1 {[%clk 0:01:09.6]} 41... a1=Q+ {[%clk
0:00:45.4]} 42. Kg2 {[%clk 0:01:09.5]} 42... Qa8 {[%clk 0:00:46]} 43. Rh3 {[%clk
0:00:56.8]} 43... Qh8 {[%clk 0:00:46.1]} 44. Kf3 {[%clk 0:00:51]} 44... d3
{[%clk 0:00:33.7]} 45. cxd3 {[%clk 0:00:49.7]} 45... Kb4 {[%clk 0:00:34.3]} 46.
Ke4 {[%clk 0:00:42.5]} 46... Kxb3 {[%clk 0:00:26.6]} 47. d4 {[%clk 0:00:40.6]}
47... Kb4 {[%clk 0:00:24.1]} 48. Kd3 {[%clk 0:00:39.7]} 48... Be1 {[%clk
0:00:20.6]} 49. Nd6 {[%clk 0:00:32.7]} 49... c5 {[%clk 0:00:12.5]} 50. Nxf7
{[%clk 0:00:31.7]} 50... c4+ {[%clk 0:00:13.1]} 51. Ke2 {[%clk 0:00:29.1]} 51...
Qe8+ {[%clk 0:00:12.9]} 52. Kf1 {[%clk 0:00:29.1]} 52... Bxf2 {[%clk 0:00:12.8]}
53. Kxf2 {[%clk 0:00:28]} 53... Qe4 {[%clk 0:00:10.5]} 54. h8=Q {[%clk
0:00:27.2]} 54... Qf4+ {[%clk 0:00:10.4]} 55. Kg2 {[%clk 0:00:26.4]} 55... Qd2+
{[%clk 0:00:10.4]} 56. Kg3 {[%clk 0:00:25.9]} 56... Qe3+ {[%clk 0:00:09.8]} 57.
Kh4 {[%clk 0:00:25.8]} 57... Qe1+ {[%clk 0:00:10.7]} 58. Kh5 {[%clk 0:00:25.4]}
58... Qe3 {[%clk 0:00:09.9]} 1-0